fUST/lending_fUST_20250428
["ID","MTS","AMOUNT","RATE_DAILY","PERIOD"]
[359198290,1745804844148,-745.75,0.00025,2]
[359198291,1745804844168,-189.0456,0.00025335,2]
[359198292,1745804844188,-182.730697,0.00025543,2]
[359198293,1745804844209,-182.730697,0.00025575,2]
[359198294,1745804844228,-182.730697,0.00025607,2]
[359198295,1745804844248,-182.730697,0.00025639,2]
[359198296,1745804844267,-182.730697,0.00025671,2]
[359198297,1745804844288,-300.0,0.00025721,2]
[359198298,1745804844308,-7007.01984225,0.00025722,2]
[359198527,1745805032258,-150.097,0.00023613,2]
[359198528,1745805032268,-150.091,0.00023613,2]
[359198529,1745805032277,-155.0,0.00024893,2]
[359198531,1745805032287,-459.89352241,0.00025,2]
[359198532,1745805032313,-211.28647759,0.00025,2]
[359198533,1745805032322,-1480.3071194,0.00025949,2]
[359198535,1745805032331,-155.0,0.00026137,2]
[359198537,1745805032340,-159.65,0.000266,31]
[359198539,1745805032349,-159.65,0.000266,31]
[359198541,1745805032358,-159.65,0.000268,31]
[359198543,1745805032367,-159.65,0.000268,31]
[359198544,1745805032376,-159.65,0.000268,31]
[359198545,1745805032385,-159.65,0.000268,31]
[359198547,1745805032394,-1244.22362762,0.00026848,2]
[359198548,1745805032419,-171.62051019,0.00026848,2]
[359198549,1745805032429,-300.0,0.00026848,2]
[359198550,1745805032439,-205.97077521,0.000269,7]
[359198551,1745805032449,-159.65,0.000269,31]
[359198552,1745805032458,-159.65,0.000269,31]
[359198553,1745805032467,-159.65,0.000269,31]
[359198554,1745805032477,-159.65,0.000269,31]
[359198555,1745805032487,-313.23359267,0.00027,3]
[359198556,1745805032495,-313.23359267,0.00027,3]
[359198557,1745805032505,-313.23359267,0.00027,3]
[359198558,1745805032514,-159.65,0.000271,31]
[359198559,1745805032523,-159.65,0.000271,31]
[359198560,1745805032532,-159.65,0.000271,31]
[359198561,1745805032541,-159.65,0.000271,31]
[359198562,1745805032551,-263.17964699,0.00027295,2]
[359198563,1745805032560,-159.65,0.000273,31]
[359198564,1745805032570,-159.65,0.000273,31]
[359198565,1745805032579,-159.65,0.000273,31]
[359198566,1745805032589,-159.65,0.000273,31]
[359198567,1745805032598,-205.97077518,0.00027348,7]
[359198568,1745805032608,-500.80675124,0.00027373,2]
[359198569,1745805032620,-155.0,0.00027382,2]
[359198570,1745805032631,-500.0,0.00027393,2]
[359198571,1745805032644,-500.0,0.00027393,2]
[359198572,1745805032664,-500.0,0.00027393,2]
[359198573,1745805032674,-500.0,0.00027393,2]
[359198574,1745805032684,-195.96614831,0.00027393,2]
[359198575,1745805032693,-500.0,0.00027393,2]
[359198576,1745805032703,-500.0,0.00027393,2]
[359198577,1745805032713,-500.0,0.00027393,2]
[359198578,1745805032722,-500.0,0.00027393,2]
[359198579,1745805032732,-134.36092409,0.00027393,2]
[359198630,1745805038385,-365.63907591,0.00027393,2]
[359198632,1745805038395,-500.0,0.00027393,2]
[359198634,1745805038404,-500.0,0.00027393,2]
[359198636,1745805038414,-500.0,0.00027393,2]
[359198638,1745805038423,-400.0,0.00027394,2]
[359198640,1745805038433,-400.0,0.00027394,2]
[359198642,1745805038443,-400.0,0.00027394,2]
[359198644,1745805038453,-400.0,0.00027394,2]
[359198646,1745805038463,-400.0,0.00027394,2]
[359198648,1745805038473,-400.0,0.00027394,2]
[359198650,1745805038482,-400.0,0.00027394,2]
[359198652,1745805038492,-501.91204331,0.00027394,2]
[359198654,1745805038504,-400.0,0.00027394,2]
[359198656,1745805038514,-400.0,0.00027394,2]
[359198658,1745805038524,-400.0,0.00027394,2]
[359198660,1745805038533,-400.0,0.00027394,2]
[359198662,1745805038543,-400.0,0.00027394,2]
[359198664,1745805038555,-400.0,0.00027394,2]
[359198667,1745805038564,-399.14037476,0.00027394,2]
[359198669,1745805038573,-400.0,0.00027394,2]
[359198671,1745805038583,-400.0,0.00027394,2]
[359198673,1745805038592,-400.0,0.00027394,2]
[359198675,1745805038602,-400.0,0.00027394,2]
[359198677,1745805038611,-400.0,0.00027394,2]
[359198679,1745805038621,-400.0,0.00027394,2]
[359198682,1745805038630,-400.0,0.00027394,2]
[359198685,1745805038639,-400.0,0.00027394,2]
[359198688,1745805038648,-400.0,0.00027394,2]
[359198691,1745805038658,-400.0,0.00027394,2]
[359198694,1745805038667,-400.0,0.00027394,2]
[359198697,1745805038676,-531.11230767,0.00027394,2]
[359198700,1745805038685,-400.0,0.00027394,2]
[359198702,1745805038694,-400.0,0.00027394,2]
[359198704,1745805038704,-400.0,0.00027394,2]
[359198706,1745805038714,-400.0,0.00027394,2]
[359198708,1745805038723,-400.0,0.00027394,2]
[359198710,1745805038733,-400.0,0.00027394,2]
[359198712,1745805038742,-400.0,0.00027394,2]
[359198714,1745805038755,-152.60154324,0.00027394,2]
[359198716,1745805038765,-151.0,0.00027394,2]
[359198718,1745805038775,-152.53139296,0.00027394,2]
[359198720,1745805038784,-166.95024633,0.00027394,2]
[359198722,1745805038793,-295.90015868,0.00027395,2]
[359198724,1745805038802,-400.0,0.00027395,2]
[359198726,1745805038812,-400.0,0.00027395,2]
[359198728,1745805038822,-400.0,0.00027395,2]
[359198729,1745805038832,-533.5579904,0.00027396,2]
[359198730,1745805038842,-400.0,0.00027396,2]
[359198731,1745805038851,-505.54869525,0.00027396,2]
[359198732,1745805038862,-400.0,0.00027396,2]
[359198734,1745805038871,-270.22081876,0.00027396,2]
[359198735,1745805038881,-400.0,0.00027396,2]
[359198736,1745805038890,-400.0,0.00027396,2]
[359198737,1745805038900,-530.38240449,0.00027396,2]
[359198738,1745805038910,-527.523243,0.00027396,2]
[359198739,1745805038924,-519.61653895,0.00027396,2]
[359198740,1745805038935,-510.72494507,0.00027396,2]
[359198741,1745805038945,-500.0,0.00027396,2]
[359198742,1745805038954,-511.10382052,0.00027396,2]
[359198743,1745805038964,-501.3877892,0.00027396,2]
[359198744,1745805038974,-513.55535641,0.00027396,2]
[359198745,1745805038983,-517.20284337,0.00027396,2]
[359198746,1745805038992,-400.0,0.00027397,2]
[359198747,1745805039004,-400.0,0.00027397,2]
[359198748,1745805039013,-400.0,0.00027397,2]
[359198749,1745805039023,-352.0014936,0.00027397,2]
[359198751,1745805039033,-500.0,0.00027397,2]
[359198752,1745805039042,-500.0,0.00027397,2]
[359198753,1745805039052,-1500.0,0.00027397,2]
[359198754,1745805039061,-6250.0,0.00027397,120]
[359198755,1745805039071,-500.0,0.00027397,5]
[359198756,1745805039081,-300.0,0.000274,5]
[359198757,1745805039092,-500.0,0.000274,5]
[359198758,1745805039102,-151.0,0.00027421,2]
[359198759,1745805039113,-200.07077151,0.00027449,2]
[359198760,1745805039124,-400.0,0.00027668,2]
[359198761,1745805039134,-400.0,0.00027668,2]
[359198762,1745805039145,-400.0,0.00027668,2]
[359198763,1745805039155,-400.0,0.00027668,2]
[359198764,1745805039164,-400.0,0.00027668,2]
[359198765,1745805039174,-400.0,0.00027668,2]
[359198766,1745805039183,-400.0,0.00027668,2]
[359198767,1745805039193,-202.86357364,0.00027668,2]
[359198768,1745805039205,-400.0,0.00027668,2]
[359198769,1745805039215,-400.0,0.00027668,2]
[359198770,1745805039225,-400.0,0.00027668,2]
[359198771,1745805039234,-400.0,0.00027668,2]
[359198772,1745805039245,-400.0,0.00027668,2]
[359198773,1745805039255,-400.0,0.00027668,2]
[359198774,1745805039264,-400.0,0.00027668,2]
[359198775,1745805039275,-400.0,0.00027668,2]
[359198776,1745805039284,-400.0,0.00027668,2]
[359198777,1745805039294,-400.0,0.00027668,2]
[359198778,1745805039304,-400.0,0.00027668,2]
[359198779,1745805039314,-400.0,0.00027668,2]
[359198780,1745805039323,-400.0,0.00027668,2]
[359198781,1745805039333,-400.0,0.00027668,2]
[359198782,1745805039343,-296.80994563,0.00027668,2]
[359198783,1745805039352,-400.0,0.00027668,2]
[359198784,1745805039361,-400.0,0.00027668,2]
[359198785,1745805039371,-400.0,0.00027668,2]
[359198786,1745805039381,-400.0,0.00027668,2]
[359198787,1745805039390,-400.0,0.00027668,2]
[359198788,1745805039400,-163.28218979,0.00027668,2]
[359198789,1745805039410,-400.0,0.00027668,2]
[359198790,1745805039588,-400.0,0.00027668,2]
[359198791,1745805039598,-400.0,0.00027669,2]
[359198792,1745805039608,-301.70716197,0.00027669,2]
[359198793,1745805039617,-359.6,0.00027669,2]
[359198794,1745805039626,-400.0,0.0002767,2]
[359198795,1745805039636,-400.0,0.0002767,2]
[359198796,1745805039645,-400.0,0.0002767,2]
[359198797,1745805039656,-400.0,0.0002767,2]
[359198798,1745805039666,-400.0,0.00027671,2]
[359198799,1745805039675,-400.0,0.00027671,2]
[359198800,1745805039684,-400.0,0.00027671,2]
[359198801,1745805039694,-383.02322917,0.00027673,5]
[359198802,1745805039703,-502.16579036,0.00027673,5]
[359198803,1745805039716,-205.97077518,0.00027797,7]
[359198804,1745805039725,-2000.0,0.000278,2]
[359198805,1745805039735,-999999.00000606,0.000279,2]
[359198806,1745805039745,-408.04854029,0.00027933,2]
[359198807,1745805039754,-196227.266941,0.00027934,2]
[359198808,1745805039763,-217.54665621,0.00027942,2]
[359198809,1745805039773,-210.40600366,0.00027942,2]
[359198810,1745805039782,-400.0,0.00027942,2]
[359198811,1745805039791,-400.0,0.00027942,2]
[359198812,1745805039801,-400.0,0.00027942,2]
[359198813,1745805039811,-400.0,0.00027942,2]
[359198814,1745805039820,-400.0,0.00027942,2]
[359198815,1745805039829,-208.74049278,0.00027942,2]
[359198816,1745805039839,-210.5431167,0.00027942,2]
[359198817,1745805039848,-207.36855844,0.00027942,2]
[359198818,1745805039857,-217.00526298,0.00027942,2]
[359198819,1745805039866,-206.52720499,0.00027942,2]
[359198820,1745805039875,-202.92440867,0.00027942,2]
[359198821,1745805039885,-216.51543779,0.00027942,2]
[359198822,1745805039894,-208.88119194,0.00027942,2]
[359198823,1745805039903,-400.0,0.00027942,2]
[359198824,1745805039914,-208.47627878,0.00027942,2]
[359198825,1745805039926,-214.48197841,0.00027942,2]
[359198826,1745805039937,-223.75931626,0.00027942,2]
[359198827,1745805039947,-214.78545946,0.00027942,2]
[359198828,1745805039957,-204.85214134,0.00027942,2]
[359198829,1745805039967,-206.48978986,0.00027942,2]
[359198830,1745805039976,-204.88647577,0.00027942,2]
[359198831,1745805039986,-206.06107391,0.00027942,2]
[359198832,1745805039995,-207.74364059,0.00027942,2]
[359198833,1745805040004,-210.03580609,0.00027942,2]
[359198834,1745805040015,-209.28599253,0.00027942,2]
[359198835,1745805040023,-209.35266934,0.00027942,2]
[359198836,1745805040032,-213.93401344,0.00027943,2]
[359198837,1745805040041,-208.75057846,0.00027944,2]
[359198838,1745805040050,-211.43726467,0.00027944,2]
[359198839,1745805040060,-254.60860007,0.00027944,2]
[359198840,1745805040069,-218.27480175,0.00027944,2]
[359198841,1745805040078,-210.74893018,0.00027945,2]
[359198842,1745805040088,-205.8675377,0.00027945,2]
[359198843,1745805040097,-209.29146116,0.00027945,2]
[359198844,1745805040107,-506.52543073,0.00027973,5]
[359198845,1745805040117,-500.0,0.00027973,2]
[359198847,1745805040128,-500.5200557,0.00027973,5]
[359198848,1745805040139,-500.89818975,0.00027973,5]
[359198849,1745805040149,-502.15617553,0.00027973,5]
[359198850,1745805040158,-505.31489796,0.00027973,5]
[359198851,1745805040168,-504.12512712,0.00027973,5]
[359198852,1745805040177,-500.0,0.00027973,5]
[359198853,1745805040187,-502.59911486,0.00027973,5]
[359198854,1745805040196,-503.54977946,0.00027973,2]
[359198855,1745805040206,-505.85789871,0.00027973,5]
[359198856,1745805040215,-500.99623342,0.00027973,5]
[359198858,1745805040226,-505.74932326,0.00027973,5]
[359198859,1745805040236,-231.52668333,0.00028216,2]
[359198860,1745805040246,-313.41489308,0.00028216,2]
[359198861,1745805040255,-318.74843694,0.00028216,2]
[359198862,1745805040264,-324.19157117,0.00028216,2]
[359198863,1745805040274,-306.09356901,0.00028216,2]
[359198864,1745805040283,-400.0,0.00028216,2]
[359198865,1745805040292,-205.97077518,0.00028245,7]
[359198866,1745805040302,-236.01574697,0.0002849,2]
[359198867,1745805040313,-205.97077518,0.00028693,8]
[359198868,1745805040323,-189.0456,0.0002876,2]
[359198870,1745805040332,-2000.0,0.000288,2]
[359198871,1745805040342,-263.17964695,0.0002899,2]
[359198872,1745805040351,-193.37406346,0.00029,7]
[359198873,1745805040362,-193.37406346,0.00029,7]
[359198874,1745805040372,-296.0,0.0002903,2]
[359198875,1745805040381,-600.0,0.00029044,5]
[359198876,1745805040390,-205.97077518,0.00029141,8]
[359198877,1745805040400,-205.97077518,0.0002959,8]
[359198878,1745805040409,-939.199999,0.000298,2]
[359198879,1745805040419,-162.251,0.00029847,24]
[359198880,1745805040427,-587.20842416,0.0002989,2]
[359198881,1745805040438,-1024.16938895,0.00029999,2]
[359198882,1745805040449,-269.0,0.0003,2]
[359198883,1745805040458,-205.97077518,0.00030038,9]
[359198884,1745805040468,-205.97077518,0.00030486,9]
[359198885,1745805040477,-263.17964695,0.00030685,2]
[359198886,1745805040486,-900.0,0.00030688,5]
[359198887,1745805040496,-205.97077518,0.00030934,9]
[359198888,1745805040505,-500.0,0.00031164,7]
[359198889,1745805040514,-205.97077518,0.00031383,9]
[359198890,1745805040523,-500.50554691,0.000316,5]
[359198891,1745805040532,-500.94634868,0.000316,5]
[359198892,1745805040541,-205.97077518,0.00031831,10]
[359198893,1745805040550,-313.23359267,0.00031963,120]
[359198894,1745805040560,-6250.0,0.00031963,120]
[359198896,1745805040570,-500.98614807,0.000321,5]
[359198897,1745805040579,-200.91431806,0.000321,5]
[359198898,1745805040589,-299.55077343,0.000321,5]
[359198899,1745805040598,-500.4904128,0.000321,5]
[359198900,1745805040608,-280.92569284,0.000321,5]
[359198901,1745805040616,-189.0456,0.00032184,2]
[359198902,1745805040625,-205.97077518,0.00032279,10]
[359198903,1745805040634,-1200.0,0.00032332,5]
[359198904,1745805040644,-263.17964695,0.0003238,2]
[359198906,1745805040653,-205.97077518,0.00032728,10]
[359198908,1745805040662,-379.99606994,0.00032808,7]
[359198910,1745805040671,-196227.266941,0.00032866,2]
[359198911,1745805040680,-500.69190383,0.00032873,5]
[359198912,1745805040689,-500.0,0.00032873,5]
[359198913,1745805040698,-500.23402258,0.00032873,5]
[359198915,1745805040708,-500.81255343,0.00032873,5]
[359198916,1745805040717,-500.64689673,0.00032873,5]
[359198917,1745805040727,-501.46182364,0.00032873,5]
[359198918,1745805040736,-160.903505,0.00032873,5]
[359198919,1745805040746,-500.56888334,0.00032873,5]
[359198920,1745805040755,-500.63535154,0.00032873,5]
[359198921,1745805040764,-333.7364528,0.00032873,5]
[359198922,1745805040772,-269.97573872,0.00032873,5]
[359198923,1745805040781,-617.38952317,0.00032873,5]
[359198924,1745805040790,-501.78080791,0.00032873,5]
[359198925,1745805040799,-501.7569803,0.00032873,5]
[359198926,1745805040808,-512.06997824,0.00032873,5]
[359198927,1745805040817,-500.39510892,0.00032873,5]
[359198928,1745805040826,-501.30879091,0.00032873,5]
[359198929,1745805040835,-530.88090057,0.00032873,5]
[359198930,1745805040844,-500.27735169,0.00032873,5]
[359198931,1745805040853,-503.06882158,0.00032873,5]
[359198932,1745805040862,-501.58616856,0.00032873,5]
[359198933,1745805040872,-501.04981614,0.00032873,5]
[359198934,1745805040881,-504.938814,0.00032873,5]
[359198936,1745805040890,-500.3072456,0.00032873,5]
[359198937,1745805040899,-500.74727161,0.00032873,5]
[359198938,1745805040909,-500.48975104,0.00032873,5]
[359198939,1745805040922,-501.44827743,0.00032873,5]
[359198940,1745805040931,-500.0,0.00032873,5]
[359198941,1745805040940,-500.6139638,0.00032873,3]
[359198942,1745805040950,-504.82246203,0.00032873,5]
[359198943,1745805040960,-501.04574452,0.00032873,5]
[359198944,1745805040969,-500.0,0.00032873,5]
[359198945,1745805040978,-500.0,0.00032873,5]
[359198946,1745805040987,-501.22587563,0.00032873,5]
[359198947,1745805040996,-501.65208727,0.00032873,5]
[359198948,1745805041007,-521.01821581,0.00032873,5]
[359198949,1745805041016,-500.41713557,0.00032873,5]
[359198950,1745805041025,-530.42895787,0.00032873,5]
[359198951,1745805041035,-500.61736159,0.00032873,5]
[359198952,1745805041046,-500.30947231,0.00032873,5]
[359198953,1745805041056,-500.0,0.00032876,2]
[359198954,1745805041066,-400.0,0.00032876,2]
[359198955,1745805041076,-503.20025853,0.00032876,2]
[359198956,1745805041086,-400.0,0.00032876,2]
[359198957,1745805041096,-400.0,0.00032876,2]
[359198958,1745805041106,-400.0,0.00032876,2]
[359198959,1745805041116,-400.0,0.00032876,2]
[359198960,1745805041126,-510.62121167,0.00032876,2]
[359198961,1745805041135,-517.68920582,0.00032876,2]
[359198962,1745805041145,-400.0,0.00032876,2]
[359198963,1745805041155,-500.0,0.00032876,2]
[359198964,1745805041166,-400.0,0.00032876,2]
[359198965,1745805041175,-500.0,0.00032876,2]
[359198966,1745805041186,-400.0,0.00032876,2]
[359198967,1745805041196,-355.47327564,0.00032876,2]
[359198968,1745805041205,-400.0,0.00032876,2]
[359198969,1745805041215,-192.68637983,0.00032876,2]
[359198970,1745805041224,-530.30345,0.00032876,2]
[359198971,1745805041234,-512.87328333,0.00032876,2]
[359198972,1745805041243,-507.83329096,0.00032876,2]
[359198973,1745805041253,-400.0,0.00032876,2]
[359198974,1745805041263,-527.75740899,0.00032876,2]
[359198975,1745805041273,-400.0,0.00032876,2]
[359198976,1745805041283,-505.38577181,0.00032876,2]
[359198977,1745805041293,-400.0,0.00032876,2]
[359198978,1745805041303,-511.55963684,0.00032876,2]
[359198979,1745805041313,-509.88853726,0.00032876,2]
[359198980,1745805041322,-508.84133168,0.00032876,2]
[359198982,1745805041331,-400.0,0.00032876,2]
[359198983,1745805041341,-400.0,0.00032876,2]
[359198984,1745805041350,-400.0,0.00032876,2]
[359198985,1745805041360,-510.04433855,0.00032876,2]
[359198986,1745805041369,-400.0,0.00032876,2]
[359198987,1745805041378,-508.49533847,0.00032876,2]
[359198988,1745805041388,-534.0536047,0.00032876,2]
[359198989,1745805041397,-400.0,0.00032876,2]
[359198990,1745805041407,-506.99572861,0.00032876,2]
[359198991,1745805041418,-400.0,0.00032876,2]
[359198992,1745805041427,-512.0488515,0.00032876,2]
[359198993,1745805041438,-518.40480531,0.00032876,2]
[359198994,1745805041448,-400.0,0.00032876,2]
[359198995,1745805041458,-400.0,0.00032876,2]
[359198996,1745805041467,-400.0,0.00032876,2]
[359198997,1745805041477,-503.45525287,0.00032876,2]
[359198998,1745805041486,-301.2656651,0.00032876,2]
[359198999,1745805041496,-400.0,0.00032876,2]
[359199000,1745805041505,-400.0,0.00032876,2]
[359199001,1745805041514,-400.0,0.00032876,2]
[359199002,1745805041524,-400.0,0.00032876,2]
[359199003,1745805041533,-400.0,0.00032876,2]
[359199004,1745805041542,-400.0,0.00032876,2]
[359199005,1745805041551,-400.0,0.00032876,2]
[359199006,1745805041561,-505.07678446,0.00032876,2]
[359199007,1745805041570,-400.0,0.00032876,2]
[359199009,1745805041579,-400.0,0.00032876,2]
[359199010,1745805041589,-400.0,0.00032876,2]
[359199011,1745805041598,-400.0,0.00032876,2]
[359199012,1745805041607,-500.0,0.00032876,2]
[359199013,1745805041616,-400.0,0.00032876,2]
[359199014,1745805041625,-400.0,0.00032876,2]
[359199015,1745805041634,-400.0,0.00032876,2]
[359199016,1745805041643,-400.0,0.00032876,2]
[359199017,1745805041652,-400.0,0.00032876,2]
[359199018,1745805041662,-449.93792477,0.00032876,2]
[359199019,1745805041671,-400.0,0.00032876,2]
[359199020,1745805041680,-400.0,0.00032876,2]
[359199021,1745805041690,-400.0,0.00032876,2]
[359199022,1745805041699,-400.0,0.00032876,2]
[359199023,1745805041709,-508.31697733,0.00032876,2]
[359199024,1745805041718,-400.0,0.00032876,2]
[359199025,1745805041728,-400.0,0.00032876,2]
[359199026,1745805041737,-400.0,0.00032876,2]
[359199027,1745805041747,-505.63976458,0.00032876,2]
[359199028,1745805041757,-400.0,0.00032876,2]
[359199029,1745805041766,-504.7551285,0.00032876,2]
[359199030,1745805041775,-400.0,0.00032876,2]
[359199031,1745805041784,-501.42281392,0.00032876,2]
[359199032,1745805041793,-400.0,0.00032876,2]
[359199033,1745805041803,-502.29357443,0.00032876,2]
[359199034,1745805041814,-503.85908735,0.00032876,2]
[359199035,1745805041823,-400.0,0.00032876,2]
[359199036,1745805041833,-505.39258245,0.00032876,2]
[359199037,1745805041842,-515.69101626,0.00032876,2]
[359199038,1745805041851,-400.0,0.00032876,2]
[359199039,1745805041860,-400.0,0.00032876,2]
[359199040,1745805041869,-400.0,0.00032876,2]
[359199041,1745805041878,-504.75076622,0.00032876,2]
[359199042,1745805041887,-419.87423725,0.00032876,2]
[359199043,1745805041896,-400.0,0.00032876,2]
[359199044,1745805041905,-510.31606272,0.00032876,2]
[359199045,1745805041917,-400.0,0.00032876,2]
[359199046,1745805041927,-536.74085526,0.00032876,2]
[359199047,1745805041936,-393.75339431,0.00032876,2]
[359199048,1745805041945,-400.0,0.00032876,2]
[359199049,1745805041954,-400.0,0.00032876,2]
[359199050,1745805041963,-400.0,0.00032876,2]
[359199051,1745805041973,-504.16022462,0.00032876,2]
[359199052,1745805041983,-400.0,0.00032876,2]
[359199053,1745805041992,-400.0,0.00032876,2]
[359199054,1745805042004,-400.0,0.00032876,2]
[359199055,1745805042014,-400.0,0.00032876,2]
[359199056,1745805042024,-400.0,0.00032876,2]
[359199057,1745805042033,-400.0,0.00032876,2]
[359199058,1745805042044,-400.0,0.00032876,2]
[359199059,1745805042053,-400.0,0.00032876,2]
[359199060,1745805042063,-400.0,0.00032876,2]
[359199061,1745805042072,-400.0,0.00032876,2]
[359199062,1745805042082,-400.0,0.00032876,2]
[359199063,1745805042092,-400.0,0.00032876,2]
[359199064,1745805042101,-400.0,0.00032876,2]
[359199065,1745805042111,-400.0,0.00032876,2]
[359199066,1745805042120,-400.0,0.00032876,2]
[359199067,1745805042129,-400.0,0.00032876,2]
[359199068,1745805042139,-400.0,0.00032876,2]
[359199069,1745805042149,-502.85853979,0.00032876,2]
[359199070,1745805042159,-504.32622505,0.00032876,2]
[359199071,1745805042168,-504.45,0.00032876,2]
[359199072,1745805042178,-794.32,0.00032876,2]
[359199073,1745805042187,-400.0,0.00032876,2]
[359199074,1745805042196,-400.0,0.00032876,2]
[359199075,1745805042205,-400.0,0.00032876,2]
[359199076,1745805042215,-400.0,0.00032876,2]
[359199077,1745805042224,-400.0,0.00032876,2]
[359199078,1745805042234,-400.0,0.00032876,2]
[359199079,1745805042243,-400.0,0.00032876,2]
[359199080,1745805042254,-400.0,0.00032876,2]
[359199081,1745805042264,-400.0,0.00032876,2]
[359199082,1745805042274,-400.0,0.00032876,2]
[359199083,1745805042285,-400.0,0.00032876,2]
[359199084,1745805042294,-400.0,0.00032876,2]
[359199085,1745805042305,-400.0,0.00032876,2]
[359199086,1745805042315,-400.0,0.00032876,2]
[359199087,1745805042324,-400.0,0.00032876,2]
[359199088,1745805042333,-400.0,0.00032876,2]
[359199089,1745805042343,-400.0,0.00032876,2]
[359199090,1745805042353,-400.0,0.00032876,2]
[359199091,1745805042362,-400.0,0.00032876,2]
[359199092,1745805042370,-400.0,0.00032876,2]
[359199093,1745805042378,-400.0,0.00032876,2]
[359199094,1745805042386,-508.27275613,0.00032876,2]
[359199095,1745805042394,-400.0,0.00032876,2]
[359199096,1745805042403,-400.0,0.00032876,2]
[359199097,1745805042413,-400.0,0.00032876,2]
[359199098,1745805042422,-400.0,0.00032876,2]
[359199099,1745805042432,-400.0,0.00032876,2]
[359199100,1745805042441,-504.79687952,0.00032876,2]
[359199101,1745805042451,-400.0,0.00032876,2]
[359199103,1745805042460,-400.0,0.00032876,2]
[359199104,1745805042469,-400.0,0.00032876,2]
[359199105,1745805042478,-400.0,0.00032876,2]
[359199106,1745805042488,-400.0,0.00032876,2]
[359199107,1745805042499,-440.35912744,0.00032876,2]
[359199108,1745805042509,-400.0,0.00032876,2]
[359199109,1745805042518,-400.0,0.00032876,2]
[359199110,1745805042528,-269.68854708,0.00032876,2]
[359199111,1745805042537,-400.0,0.00032876,2]
[359199112,1745805042546,-1000.0,0.00032877,5]
[359199113,1745805042556,-1000.0,0.00032879,5]
[359199114,1745805042565,-269.0,0.00033,2]
[359199115,1745805042574,-603.39,0.00033141,2]
[359199116,1745805042583,-603.39,0.00033141,2]
[359199117,1745805042592,-603.39,0.00033141,2]
[359199118,1745805042602,-603.39,0.00033141,2]
[359199119,1745805042611,-603.39,0.00033141,2]
[359199120,1745805042620,-603.39,0.00033141,2]
[359199121,1745805042629,-603.39,0.00033141,2]
[359199122,1745805042747,-603.39,0.00033141,2]
[359199123,1745805042758,-603.39,0.00033141,2]
[359199124,1745805042768,-603.39,0.00033141,2]
[359199126,1745805042777,-196227.266941,0.00033142,2]
[359199127,1745805042786,-615.05790009,0.0003315,2]
[359199128,1745805042796,-400.0,0.0003315,2]
[359199129,1745805042806,-400.0,0.0003315,2]
[359199130,1745805042815,-400.0,0.0003315,2]
[359199131,1745805042824,-400.0,0.0003315,2]
[359199132,1745805042834,-400.0,0.0003315,2]
[359199133,1745805042843,-400.0,0.0003315,2]
[359199135,1745805042852,-400.0,0.0003315,2]
[359199136,1745805042862,-400.0,0.0003315,2]
[359199138,1745805042871,-377.27703765,0.0003315,2]
[359199140,1745805042881,-400.0,0.0003315,2]
[359199142,1745805042890,-546.85395699,0.0003315,2]
[359199143,1745805042900,-400.0,0.0003315,2]
[359199145,1745805042909,-400.0,0.0003315,2]
[359199148,1745805042924,-400.0,0.0003315,2]
[359199151,1745805042933,-400.0,0.0003315,2]